Workbook

Sheet Sheet7
B2: FORM NO . MGT-9
B3: EXTRACT OF ANNUAL RETURN
B4: As on Financial Year ended on 31.03.2015
B5: (Purusant to Section 92 (3) of the Companues Act 2013 abd rule 12(1) of the Companies
B6: (Management & Administration ) Rules 2014)
A8: I | B8: REGISTRATION & OTHER DETAILS :-
B9: 1 | C9: CIN NO: | D9: L1712MH1988PLCO050197
B10: 2 | C10: Registration Date : | D10: 1994-10-06
B11: 3 | C11: Name of the Company | D11: SPICE ISLANDS APPARELS LTD.
B12: 4 | C12: Category/Sub-Category of the Company | D12: Company Limited by Shares/India,Non-government Company
B13: 5 | C13: Address of the Registered office & contact Details | D13: Unit No:43-48,Bhandup Industrial Estate,Pannalal Silk Mills Compound, L.B.S. Marg, Bhandup-West-Mumbai-400 078. Tel: 022-61992900
B14: 6 | C14: Whether listed Company | D14: Yes
B15: 7 | C15: Name ,Address & contact details of theRegistrar & Transfer Agent, If any | D15: Link Intime India Private Limited. C-13,Pannalal Silk Mills Compound,L.B.S. Marg, Bhandup(W),Mumbai-400078. Tel: 022-25946970/25963838, Fax No:022-25946969
A17: II | B17: PRINCIPAL BUSINESS ACTIVITIES OF THE COMPANY
B18: (All the business activities contributing 10% or more of the total turnover of the company shall be started
B20: Sr. | C20: Name and Description of main products/Services | D20: NIC Code of the products/services | E20: % to total turnover of the Company
B21: No.
B22: 1 | C22: Wovern & Knitting

Sheet Sheet1
B1: I. SHARE HOLDING PATTERN [ EQUITY SHARE CAPITAL BREAK-UP AS A PERCENTAGE OF TOTAL EQUITY]
B3: 1. Category -wise share holding.
B5: Category of Shareholders | C5: No. of share held at the beginning of the year ( As on 1st April,2014) | G5: No. of Shares held at the end of the year ( As on March,31,2015) | K5: % of change during the year
C6: Demat | D6: Physical | E6: Total | F6: % of Total Shares | G6: Demat | H6: Physical | I6: Total | J6: % of Total Shares
B7: A. PROMOTORS
B8: 1. Indian
B9: (a) Individual/HUF | C9: =2714798-34386 -> 2680412 | D9: 0 | E9: 2680412 | F9: =63.1348-0.7997 -> 62.3351 | G9: =2714798-34386 -> 2680412 | H9: 0 | I9: 2680412 | J9: =63.1348-0.7997 -> 62.3351 | K9: -
B10: (b) Central Govt.
B11: (c ) State Govt.(s)
B12: (d) Bodies Corporate
B13: (e) Bonus/Fin
B14: (f) Any others
B15: Sub Total (A) (1): | C15: =C9 -> 2680412 | D15: 0 | E15: =E9 -> 2680412 | F15: =F9 -> 62.3351 | G15: =G9 -> 2680412 | H15: 0 | I15: =I9 -> 2680412 | J15: =J9 -> 62.3351 | K15: -
B16: 2. Foreign
B17: (a) NRIs Individuals
B18: (b) Other Individuals
B19: © Bodies Corproate
B20: (d) Banks/ Fin
B21: (e) Any Others
B22: Sub Total (A) (2): | C22: 0 | D22: 0 | E22: 0 | F22: 0 | G22: 0 | H22: 0 | I22: 0 | J22: 0 | K22: -
B25: Total Shareholding of Promotor A = (A) (1)+(A) (2) | C25: =C15 -> 2680412 | D25: 0 | E25: =E15 -> 2680412 | F25: =F15 -> 62.3351 | G25: =G15 -> 2680412 | H25: 0 | I25: =I15 -> 2680412 | J25: =J15 -> 62.3351 | K25: -
B28: Category of Shareholders | C28: No. of share hold at the beginning of the year ( As on 1st April,2014) | G28: No. of Shares held at the end of the year ( As on March,31,2015) | K28: % of change during the year
C29: Demat | D29: Physical | E29: Total | F29: % of Total Shares | G29: Demat | H29: Physical | I29: Total | J29: % of Total Shares
B30: 2. Non-Institutions
B31: a) Bodies Corp. | C31: 289874 | D31: 78200 | E31: =C31+D31 -> 368074 | F31: 8.559 | G31: 278212 | H31: 78200 | I31: 356412 | J31: 8.2887 | K31: -3.27
B32: i) Indian | M32: =1200+3995+1203110 -> 1208305
B33: b) Individuals | M33: =1200+170435+3995+1032675 -> 1208305
B34: i) Individual Shareholders holding nominal share Capital upto Rs.1 lakh | C34: =1036670+34386 -> 1071056 | E34: =1208305+34386+1459 -> 1244150 | F34: =28.1001+0.7997+0.0339 -> 28.9337 | G34: =1041604+34386 -> 1075990 | I34: =1212839+34386 -> 1247225 | J34: =28.2055+0.7997 -> 29.0052 | K34: 0.25
B35: ii) Individual Shareholders holding nominal share Capital in excess of Rs.1 lakh | M35: =1247225*100/1244150 -> 100.2471567
B36: c) Others (Specify) | M36: =368074*100/356412-100 -> 3.272055935
B37: Clearing Members | C37: 6824 | D37: 0 | E37: =C37 -> 6824 | F37: 0.1587 | G37: 15531 | H37: 0 | I37: 15531 | J37: 0.3612 | K37: 56.07
B38: Foreign Nationals | M38: =1244150*100/1247225 -> 99.75345266 | N38: =100-M38 -> 0.2465473351
B39: Non-Resident Indians (REPAT) | C39: 90 | E39: =C39 -> 90 | F39: 0.0021 | G39: 70 | H39: 0 | I39: 70 | J39: 0.0016 | K39: -28.57 | M39: =100-99.75 -> 0.25
B40: Non Resident Indians (NON-REPAT) | C40: 450 | E40: =C40 -> 450 | F40: 0.0105 | G40: 350 | H40: 0 | I40: 350 | J40: 0.0081 | K40: -28.57
B41: Trust | M41: =6824*100/15531 -> 43.93793059 | N41: =100-M41 -> 56.06206941
B42: Sub Total (B) (2):
B43: Total Public Shareholding B = (B) (1)+(B) (2) | C43: =SUM(C31:C42) -> 1368294 | D43: =D31 -> 78200 | E43: =SUM(E31:E42) -> 1619588 | F43: =F40+F39+F37+F34+F31 -> 37.664 | G43: =SUM(G31:G42) -> 1370153 | H43: =SUM(H31:H42) -> 78200 | I43: =SUM(I31:I42) -> 1619588 | J43: =36.8652+0.7997 -> 37.6649 | K43: 0
B44: C. Shares held by Custodian for FDRs & ADRs. | M44: =90*100/70 -> 128.5714286 | N44: =M44-100 -> 28.57142857
B45: Grant Total (A+B+C) | C45: =C43+C25 -> 4048706 | D45: =D43+D25 -> 78200 | E45: =E43+E25 -> 4300000 | F45: 100 | G45: =G43+G25 -> 4050565 | H45: =H43+H25 -> 78200 | I45: 4300000 | J45: 100 | M45: =450*100/350 -> 128.5714286 | N45: =M45-100 -> 28.57142857
M46: =1619588*100/1619588 -> 100 | N46: =M46-100 -> 0

Sheet Sheet2
A2: II. Share holding of Promoters
A3: Sr.No. | B3: Shareholder's Name | C3: Shareholding at the beginning of the year-2014 | F3: Shareholding at the end of the year 2015 | I3: % change in shareholding during the year
C4: No. of Shares | D4: % of total Shares of the Company | E4: % of Shares Pledged/encumbered to total shares | F4: No. of Shares | G4: % of total Shares of the Company | H4: % of Shares Pledged/encumbered to total shares
A5: 1 | B5: Umesh M. Katre | C5: 935087 | D5: 21.7462 | E5: - | F5: 935087 | G5: 21.7462 | H5: - | I5: -
A6: 2 | B6: Umesh M. Katre(HUF) | C6: 315100 | D6: 7.3279 | E6: - | F6: 315100 | G6: 7.3279 | H6: - | I6: -
A7: 3 | B7: Seema U. Katre | C7: =257400+150000 -> 407400 | D7: =5.986+3.4883 -> 9.4743 | E7: - | F7: =257400+150000 -> 407400 | G7: =5.986+3.4883 -> 9.4743 | H7: - | I7: -
A8: 4 | B8: Nalini M. Katre | C8: 257200 | D8: 5.9814 | E8: - | F8: 257200 | G8: 5.9814 | H8: - | I8: -
A9: 5 | B9: Mohan G. Katre(HUF) | C9: 255125 | D9: 5.9331 | E9: - | F9: 255125 | G9: 5.9331 | H9: - | I9: -
A10: 6 | B10: Rohan U. Katre | C10: 239250 | D10: 5.564 | E10: - | F10: 239250 | G10: 5.564 | H10: - | I10: -
A11: 7 | B11: Shweta U. Katre | C11: 239250 | D11: 5.564 | E11: - | F11: 239250 | G11: 5.564 | H11: - | I11: -
A12: 8 | B12: Anjaliben S. Shevade | C12: 32000 | D12: 0.7442 | E12: - | F12: 32000 | G12: 0.7442 | H12: - | I12: -
C13: =SUM(C5:C12) -> 2680412 | D13: =SUM(D5:D12) -> 62.3351 | F13: =SUM(F5:F12) -> 2680412 | G13: =SUM(G5:G12) -> 62.3351

Sheet Sheet8
A1: III. Change in promoter Shareholding
A3: Sr no. | B3: Particulars | D3: Shareholding at the beginning of the year | I3: Cumulative shareholding during the year
D5: No. of shares | F5: % of total shares of the company | I5: No. of shares | K5: % of total shares of the company
A8: - | B8: - | D8: NO CHANGE IN PROMOTER SHARE SHAREHOLDING | J8: - | K8: - | L8: -

Sheet Sheet16
A1: IV. Shareholding pattern of top ten Shareholders
A2: Sr no. | B2: Name | C2: Shareholding | I2: Cumulative shareholding during the year (01/04/14 to 31/03/15)
C5: No. of shares at the beginning (01/04/2014) / end of the year (31/03/2015) | E5: % of total shares of the Company | F5: Date | G5: Increase or decrease in share holding | H5: Reason | I5: No. of shares | J5: % of total shares of the Company
A9: 1 | B9: MAHENDRA GIRDHARILAL | C9: 136135 | E9: 3.16 | F9: 2014-04-01 | G9: nil
F10: 2014-04-04 | H10: Transfer | I10: 136135 | J10: 3.16
F11: 2014-12-12 | G11: =I11-I10 -> -1970 | H11: Transfer | I11: 134165 | J11: 3.1201
F12: 2015-01-09 | G12: =I12-I11 -> -1000 | H12: Transfer | I12: 133165 | J12: 3.0969
C13: 133165 | E13: 3.0969 | F13: 2015-03-31 | I13: 133165 | J13: 3.0969
A16: 2 | B16: ADROIT FIN SER PVT LTD | C16: 23535 | E16: 0.5473 | F16: 2014-04-01 | G16: nil | H16: Transfer
F17: 2014-04-04 | H17: Transfer | I17: 23535
F18: 2014-04-11 | G18: -106 | H18: Transfer | I18: 23641 | J18: 0.5498
F19: 2014-04-18 | G19: =I19-I18 -> 106 | H19: Transfer | I19: 23747 | J19: 0.5523
F20: 2014-04-25 | G20: =I20-I19 -> 452 | H20: Transfer | I20: 24199 | J20: 0.5628
F21: 2014-05-02 | G21: 495 | H21: Transfer | I21: 24694 | J21: 0.5743
F22: 2014-05-09 | G22: 2001 | H22: Transfer | I22: 26695 | J22: 0.6208
F23: 2014-05-16 | G23: 769 | H23: Transfer | I23: 27464 | J23: 0.6387
F24: 2014-05-23 | G24: -92 | H24: Transfer | I24: 27372 | J24: 0.6366
F25: 2014-05-30 | G25: -4 | H25: Transfer | I25: 27368 | J25: 0.6365
F26: 2014-06-06 | G26: 11846 | H26: Transfer | I26: 39214 | J26: 0.912
F27: 2014-06-13 | G27: 5623 | H27: Transfer | I27: 44837 | J27: 1.0427
F28: 2014-06-20 | G28: 6149 | H28: Transfer | I28: 50986 | J28: 1.1857
F29: 2014-06-30 | G29: 1211 | H29: Transfer | I29: 52197 | J29: 1.2139
F30: 2014-07-04 | G30: -2 | H30: Transfer | I30: 52195 | J30: 1.2138
F31: 2014-07-11 | G31: 2042 | H31: Transfer | I31: 54237 | J31: 1.2613
F32: 2014-07-18 | G32: 908 | H32: Transfer | I32: 55145 | J32: 1.2824
F33: 2014-07-25 | G33: 502 | H33: Transfer | I33: 55647 | J33: 1.2941
F34: 2014-08-01 | G34: 1 | H34: Transfer | I34: 55648 | J34: 1.2941
F35: 2014-08-08 | G35: 111 | H35: Transfer | I35: 55759 | J35: 1.2967
F36: 2014-08-15 | G36: 742 | H36: Transfer | I36: 56501 | J36: 1.314
F37: 2014-08-22 | G37: 5027 | H37: Transfer | I37: 61528 | J37: 1.4309
F38: 2014-08-29 | G38: 6618 | H38: Transfer | I38: 68146 | J38: 1.5848
F39: 2014-09-05 | G39: 6119 | H39: Transfer | I39: 74265 | J39: 1.7271
F40: 2014-09-12 | G40: 271 | H40: Transfer | I40: 74536 | J40: 1.7334
F41: 2014-09-19 | G41: 337 | H41: Transfer | I41: 74873 | J41: 1.7412
F42: 2014-09-30 | G42: -868 | H42: Transfer | I42: 74005 | J42: 1.721
F43: 2014-10-31 | G43: -1 | H43: Transfer | I43: 74004 | J43: 1.721
F44: 2014-11-14 | G44: -150 | H44: Transfer | I44: 73854 | J44: 1.7175
F45: 2014-11-28 | G45: -50 | H45: Transfer | I45: 73804 | J45: 1.7164
C46: 73804 | E46: 1.7164 | F46: 2015-03-31 | I46: 73804 | J46: 1.7164
A48: 3 | B48: OM NATH GARG | C48: 14700 | E48: 0.3419 | F48: 2014-04-01 | H48: Transfer
F49: 2014-04-04 | G49: =I49-I48 -> 14700 | H49: Transfer | I49: 14700 | J49: 0.3419
F50: 2014-07-18 | G50: 80 | H50: Transfer | I50: 14780 | J50: 0.3437
F51: 2014-07-25 | G51: 9767 | H51: Transfer | I51: 24547 | J51: 0.5709
F52: 2014-08-15 | G52: 4877 | H52: Transfer | I52: 29424 | J52: 0.6843
F53: 2014-08-22 | G53: 980 | H53: Transfer | I53: 30404 | J53: 0.7071
F54: 2015-01-09 | G54: 8946 | H54: Transfer | I54: 39350 | J54: 0.9151
F55: 2015-01-16 | G55: 61 | H55: Transfer | I55: 39411 | J55: 0.9165
F56: 2015-02-06 | G56: 9 | H56: Transfer | I56: 39420 | J56: 0.9167
F57: 2015-02-20 | G57: 2160 | H57: Transfer | I57: 41580 | J57: 0.967
C58: 41580 | E58: 0.967 | F58: 2015-03-31 | I58: 41580 | J58: 0.967
A60: 4 | B60: JAIN PAL JAIN | C60: 33639 | E60: 0.7823 | F60: 2014-04-01
F61: 2014-04-04 | G61: =I61-I60 -> 33639 | H61: Transfer | I61: 33639 | J61: 0.7823
F62: 2014-05-30 | G62: 94 | H62: Transfer | I62: 33733 | J62: 0.7845
F63: 2014-06-06 | G63: 1000 | H63: Transfer | I63: 34733 | J63: 0.8077
C64: 34733 | E64: 0.8077 | F64: 2015-03-31 | I64: 34733 | J64: 0.8077
A66: 5 | B66: Shri Parasram Holdings Pvt. Ltd. | C66: 31967 | E66: 0.7434 | F66: 2014-04-01 | G66: 0 | H66: NIL movement during the year
C69: 31967 | E69: 0.7434 | F69: 2015-03-31 | I69: 31967 | J69: 0.7434
A71: 6 | B71: MANOJ MITTAL | C71: 30008 | E71: 0.6979 | F71: 2014-04-01 | G71: 0 | H71: NIL movement during the year
C74: 30008 | E74: 0.6979 | F74: 2015-03-31 | I74: 30008 | J74: 0.6979
A76: 7 | B76: Bhupco Alloys Ltd. | C76: 28500 | E76: 0.6628 | F76: 2014-04-01 | G76: 0 | H76: NIL movement during the year
C79: 28500 | E79: 0.6628 | F79: 2015-03-31 | I79: 28500 | J79: 0.6628
A81: 8 | B81: KOSHA INVESTMENTS LIMITED | C81: 24600 | E81: 0.5721 | F81: 2014-04-01 | G81: 0 | H81: NIL movement during the year
C84: 24600 | E84: 0.5721 | F84: 2015-03-31 | I84: 24600 | J84: 0.5721
A86: 9 | B86: SHRI PARASRAM HOLDINGS PVT.LTD. | C86: 22010 | E86: 0.5119 | F86: 2014-04-01
F87: 2014-04-04 | H87: Transfer | I87: 22010 | J87: 0.5119
F88: 30/6/2014 | G88: =I88-I87 -> -9 | H88: Transfer | I88: 22001 | J88: 0.5117
F89: 2014-12-31 | G89: 375 | H89: Transfer | I89: 22376 | J89: 0.5204
F90: 2015-01-02 | G90: 143 | H90: Transfer | I90: 22519 | J90: 0.5237
F91: 2015-01-09 | G91: -518 | H91: Transfer | I91: 22001 | J91: 0.5117
F92: 2015-01-16 | G92: 32 | H92: Transfer | I92: 22033 | J92: 0.5124
F93: 2015-01-23 | G93: -32 | H93: Transfer | I93: 22001 | J93: 0.5117
F94: 2015-02-27 | G94: 186 | H94: Transfer | I94: 22187 | J94: 0.516
F95: 2015-03-13 | G95: 46 | H95: Transfer | I95: 22233 | J95: 0.517
F96: 2015-03-20 | G96: 44 | H96: Transfer | I96: 22277 | J96: 0.5181
F97: 2015-03-27 | G97: 165 | H97: Transfer | I97: 22442 | J97: 0.5219
C98: 22442 | E98: 0.5219 | F98: 2015-03-31 | I98: 22442 | J98: 0.5219
A100: 10 | B100: BHARAT KUMAR | C100: NIL | F100: 2014-04-01
F101: 2014-10-31 | H101: Purchased | I101: 21254 | J101: 0.4943
C102: 21254 | E102: 0.4943 | F102: 2015-03-31 | I102: 21254 | J102: 0.4943

Sheet Sheet11
A1: V. Share holding of promoters and key managerial personnel
A2: Sr no. | B2: Name | C2: Shareholding | I2: Cumulative shareholding during the year (01/04/14 to 31/03/15)
C5: No. of shares at the beginning (01/04/2014) / end of the year (31/03/2015) | E5: % of total shares of the Company | F5: Date | G5: Increase or decrease in share holding | H5: Reason | I5: No. of shares | J5: % of total shares of the Company
A9: 1 | B9: Mr. Umesh Mohan Katre | C9: 935087 | E9: 21.7462 | F9: 2014-04-01 | G9: 0 | H9: Nil movement during the year
B11: Chairman And Managing Director | C11: 935087 | E11: 21.7462 | F11: 2015-03-31 | I11: 935087 | K11: 21.7462
A14: 2 | B14: Mrs. Seema Umesh Katre | C14: 407400 | E14: 9.4743 | F14: 2014-04-01 | G14: 0 | H14: Nil movement during the year
B15: Whole Time Director
C16: 407400 | E16: 9.4743 | F16: 2015-03-31 | I16: 407400 | K16: 9.4743
A18: 3 | B18: Mr. Rohan Umesh Katre | C18: 239250 | E18: 5.564 | F18: 2014-04-01 | G18: 0 | H18: Nil movement during the year
B19: Chief Financial Officer
C20: 239250 | E20: 5.564 | F20: 2015-03-31 | I20: 239250 | K20: 5.564
A22: 4 | B22: Mr. Ashok G. Daryanani | C22: 34386 | E22: 0.7997 | F22: 2014-04-01 | G22: 0 | H22: Nil movement during the year
C24: 34386 | E24: 0.7997 | F24: 2015-03-31 | I24: 34386 | K24: 0.7997
A26: 5 | B26: Mr. Rahul L. Mehta | C26: 1200 | E26: 0.0002 | F26: 2014-04-01 | G26: 0 | H26: Nil movement during the year | I26: 1200
C28: 1200 | E28: 0.0002 | F28: 2015-03-31 | I28: 1200 | K28: 0.0002
A30: 6 | B30: Mr. Carl Dantas | C30: 600 | E30: 0.0001 | F30: 2014-04-01 | G30: 0 | H30: Nil movement during the year
C32: 600 | E32: 0.0001 | F32: 2015-03-31 | I32: 600 | K32: 0.0001

Sheet Sheet3
A1: VI. Indebteness
A3: Indebtedness of the Company including interest outstanding/accruded but not due for payment.
A5: Particulars | B5: Secured Loans excluding deposits | C5: Unsecured Loans | D5: Deposits | E5: Total Indebtendness
A6: Indebtedness at the beginning of the financial year
A7: I) Principal Amount | B7: 16.37 | C7: 0 | D7: 0 | E7: 16.37
A8: ii) Interest due but not paid | B8: 0 | C8: 0 | D8: 0 | E8: 0
A9: iii)Interest accruded but not due | B9: 0 | C9: 0 | D9: 0 | E9: 0
A10: Total ( I + II + III) | B10: 16.37 | C10: 0 | D10: 0 | E10: 16.37
A12: Change in Indebtedness during the financial year
A13: Addition | B13: 13.00 | C13: 0 | D13: 0 | E13: 13.00
A14: Reduction | B14: 9.68 | C14: 0 | D14: 0 | E14: 9.68
A15: Net Change | B15: =B13-B14 -> 3.32 | C15: 0 | D15: 0 | E15: =E13-E14 -> 3.32
A17: Indebtendiness at the end of the financial year
A18: I) Principal Amount | B18: 19.69 | C18: 0 | D18: 0 | E18: 19.69
A19: ii) Interest due but not paid | B19: 0 | C19: 0 | D19: 0 | E19: 0
A20: iii)Interest accruded but not due | B20: 0 | C20: 0 | D20: 0 | E20: 0
A21: Total ( I + II + III) | B21: 19.69 | C21: 0 | D21: 0 | E21: 19.69

Sheet Sheet6
A1: VII. Remuneration of Directors and Key Managerial Personnel
A3: A. | B3: Remuneration to Managing Director, Whole Time Direct and or Manager
A4: Sr.No. | B4: Particular of Remuneration | C4: Name of MD / WTD / Manager | E4: Total Amount
C5: MD | D5: WTD
C6: Mr. Umesh Katre | D6: Mrs. Seema Katre
A7: 1 | B7: Gross Salary
B8: (a) Salary as per provisions contained in Section 17(1) of the Income Tax Act,1961 | C8: 29.50 | D8: 14.0 | E8: =SUM(C8:D8) -> 43.50
B9: (b) Value of Prequisites u/s 172(2) of the Income Tax Act,1961 | C9: 0.39 | D9: 0 | E9: =SUM(C9:D9) -> 0.39
B10: © Profits in liew of Salary u/s. 173 (3) of the Income Tax Act, 1961 | C10: - | D10: - | E10: -
A11: 2 | B11: Stock Option | C11: - | D11: - | E11: -
A12: 3 | B12: Sweat Equity | C12: - | D12: - | E12: -
A13: 4 | B13: Commission | C13: - | D13: - | E13: -
B14: - as % profit
B15: - others specify
A16: 5 | B16: Others, please specify- Contribution to PF | C16: 1.80 | D16: 0.95 | E16: 2.75
B18: Total | C18: =SUM(C8:C16) -> 31.69 | D18: =SUM(D8:D16) -> 14.95 | E18: 46.64
A20: B | B20: Remuneration to Other Directors
A22: Sr.No. | B22: Particulars of Remuneration | C22: Name of Directors | G22: Total Amount
A23: 1 | B23: Independent Directors | C23: Mr.C.G. Patnkar | D23: Mr.Rahul Mehta | E23: Mr.Carl Dantas | F23: Mr. Ashok Daryanani
B24: Fee for attending board/committee meeting | C24: 0.30 | D24: 0.30 | E24: 0.22 | F24: 0.30 | G24: =SUM(C24:F24) -> 1.12
B25: Commission\Others,please specify | C25: - | D25: - | E25: - | F25: - | G25: -
B27: Total | C27: =SUM(C24:C26) -> 0.30 | D27: =SUM(D24:D26) -> 0.30 | E27: =SUM(E24:E26) -> 0.22 | F27: =SUM(F24:F26) -> 0.30 | G27: =SUM(G24:G26) -> 1.12
A29: C | B29: Remuneration to Key managerial peroan and other than MD/Manager/WTD
A31: Sr.No. | B31: Particulars of Remuneration | C31: Key Managerial Person
D32: Total Amount
A33: 1 | B33: Gross Salary | C33: Mr. Rohan Katre
B34: (a) Salary as per provisions contained in Section 17(1) of the Income Tax Act,1961 | C34: 8.43 | D34: 8.43
B35: (b) Value of Prequisites u/s 172(2) of the Income Tax Act,1961
B36: © Profits in liew of Salary u/s. 173 (3) of the Income Tax Act, 1961
A37: 2 | B37: Stock Option
A38: 3 | B38: Sweat Equity
A39: 4 | B39: Commission
B40: - as % profit
B41: - others specify
A42: 5 | B42: Others, please specify- Contribution to PF | C42: 0.42 | D42: 0.42
B43: Total | C43: =SUM(C34:C42) -> 8.85 | D43: =SUM(D34:D42) -> 8.85

Sheet Sheet10
A1: VIII. Penalties/ punishment / compunding of offences:
A3: Type | C3: Section of the Companies Act | E3: Brief description | G3: Details of penalty/ punishment/ Compunding fees imposed | I3: Authority (RD/ NCLT/ Court) | K3: Apeal made if any(give details)
A7: A.Company
A8: Penalty | C8: NONE
A9: Punishment
A10: Compunding
A12: B.Directors
A13: Penalty | C13: NONE
A14: Punishment
A15: Compunding
A17: C.Other Officers in Default
A18: Penalty | C18: NONE
A19: Punishment
A20: Compunding
